fUST/lending_fUST_20240509
["ID","MTS","AMOUNT","RATE_DAILY","PERIOD"]
[326696710,1715257857350,-500.0,0.00041643,32]
[326696711,1715257857360,-218.632885,0.00041643,32]
[326696712,1715257857369,-16666.66,0.00041643,32]
[326696713,1715257857379,-502.69340033,0.00041643,32]
[326696714,1715257857387,-707.6,0.00041643,32]
[326696715,1715257857397,-500.0,0.00041643,32]
[326696716,1715257857406,-651.59,0.00041643,32]
[326696717,1715257857415,-513.02684438,0.00041643,32]
[326696718,1715257857424,-2636.87,0.00041643,32]
[326696719,1715257857434,-500.0,0.00041643,32]
[326696720,1715257857443,-500.0,0.00041643,32]
[326696721,1715257857453,-502.84820239,0.00041643,2]
[326696722,1715257857462,-500.0,0.00041643,32]
[326696723,1715257857471,-500.0,0.00041643,32]
[326696724,1715257857480,-3370.55,0.00041643,21]
[326696725,1715257857489,-13710.5,0.00041643,32]
[326696726,1715257857499,-507.9256949,0.00041643,32]
[326696727,1715257857508,-500.0,0.00041643,32]
[326696728,1715257857517,-1098.59,0.00041643,32]
[326696729,1715257857526,-500.0,0.00041643,32]
[326696730,1715257857537,-1361.39,0.00041643,32]
[326696731,1715257857546,-500.0,0.00041643,32]
[326696732,1715257857645,-599.16434846,0.00041643,32]
[326696733,1715257857655,-7344.12,0.00041643,32]
[326696734,1715257857664,-500.0,0.00041643,32]
[326696735,1715257857674,-500.0,0.00041643,32]
[326696736,1715257857683,-426.70029278,0.00041643,32]
[326696737,1715257857692,-500.0,0.00041643,32]
[326696738,1715257857701,-500.0,0.00041643,32]
[326696739,1715257857710,-500.0,0.00041643,32]
[326696740,1715257857720,-579.06,0.00041643,32]
[326696741,1715257857729,-503.79275033,0.00041643,32]
[326696742,1715257857738,-1699.39,0.00041643,32]
[326696743,1715257857748,-1151.12,0.00041643,32]
[326696744,1715257857758,-510.44593811,0.00041643,32]
[326696745,1715257857767,-500.0,0.00041643,32]
[326696746,1715257857776,-500.0,0.00041643,32]
[326696747,1715257857786,-500.0,0.00041643,32]
[326696748,1715257857795,-500.0,0.00041643,32]
[326696749,1715257857805,-507.876161,0.00041643,32]
[326696750,1715257857816,-500.0,0.00041643,32]
[326696751,1715257857825,-528.02,0.00041643,32]
[326696752,1715257857834,-500.0,0.00041643,32]
[326696753,1715257857843,-893.08,0.00041643,32]
[326696754,1715257857853,-500.0,0.00041643,32]
[326696755,1715257857862,-500.0,0.00041643,32]
[326696756,1715257857874,-500.0,0.00041643,32]
[326696757,1715257857885,-987.24,0.00041643,32]
[326696758,1715257857894,-500.0,0.00041643,32]
[326696759,1715257857903,-500.0,0.00041643,7]
[326696760,1715257857912,-2122.67,0.00041643,32]
[326696761,1715257857922,-1395.57,0.00041643,32]
[326696762,1715257857931,-500.0,0.00041643,32]
[326696763,1715257857940,-500.0,0.00041643,32]
[326696764,1715257857951,-510.79220814,0.00041643,32]
[326696765,1715257857960,-500.0,0.00041643,32]
[326696766,1715257857969,-1081.08,0.00041643,32]
[326696767,1715257857979,-2710.95,0.00041643,32]
[326696768,1715257857989,-500.0,0.00041643,32]
[326696769,1715257857998,-500.0,0.00041643,2]
[326696770,1715257858007,-500.0,0.00041643,32]
[326696771,1715257858016,-500.0,0.00041643,3]
[326696772,1715257858026,-2874.03465113,0.00041647,120]
[326696773,1715257858036,-557.0,0.00041762,30]
[326696774,1715257858045,-200.0,0.00041787,120]
[326696775,1715257858054,-500.0,0.00041917,33]
[326696776,1715257858066,-194.18096837,0.00041917,33]
[326696777,1715257858075,-300.0,0.00041917,7]
[326696778,1715257858084,-500.0,0.00041917,33]
[326696779,1715257858093,-500.0,0.00041917,33]
[326696780,1715257858102,-500.0,0.00041917,33]
[326696781,1715257858111,-500.0,0.00041917,33]
[326696782,1715257858120,-500.0,0.00041917,33]
[326696783,1715257858130,-622.6,0.00041917,33]
[326696784,1715257858139,-177.37624625,0.00041917,33]
[326696785,1715257858148,-500.0,0.00041917,33]
[326696786,1715257858158,-515.16520169,0.00041917,33]
[326696787,1715257858168,-500.0,0.00041917,33]
[326696788,1715257858178,-404.66673507,0.00041917,33]
[326696789,1715257858187,-500.0,0.00041917,33]
[326696790,1715257858196,-500.0,0.00041917,33]
[326696791,1715257858206,-511.52,0.00041917,33]
[326696792,1715257858215,-500.0,0.00041917,33]
[326696793,1715257858224,-343.19452409,0.00041917,33]
[326696794,1715257858234,-711.13,0.00041917,33]
[326696795,1715257858242,-500.0,0.00041917,33]
[326696796,1715257858251,-500.0,0.00041917,33]
[326696797,1715257858261,-883.2,0.00041917,33]
[326696798,1715257858272,-500.0,0.00041917,33]
[326696799,1715257858282,-500.0,0.00041917,33]
[326696800,1715257858291,-500.0,0.00041917,33]
[326696801,1715257858300,-718.83051831,0.00041917,120]
[326696802,1715257858310,-916.56,0.00041917,33]
[326696803,1715257858322,-500.0,0.00041917,33]
[326696804,1715257858333,-504.12394927,0.00041917,33]
[326696805,1715257858343,-500.0,0.00041917,33]
[326696806,1715257858354,-500.0,0.00041917,33]
[326696807,1715257858363,-500.0,0.00041917,33]
[326696808,1715257858372,-190.61330003,0.00041917,33]
[326696809,1715257858381,-500.0,0.00041917,33]
[326696810,1715257858391,-500.0,0.00041917,33]
[326696811,1715257858400,-1297.09,0.00041917,33]
[326696812,1715257858410,-500.0,0.00041917,33]
[326696813,1715257858419,-16666.66,0.00041917,33]
[326696814,1715257858429,-707.6,0.00041917,33]
[326696815,1715257858438,-500.0,0.00041917,33]
[326696816,1715257858449,-651.59,0.00041917,33]
[326696817,1715257858459,-2636.87,0.00041917,33]
[326696818,1715257858468,-500.0,0.00041917,33]
[326696819,1715257858478,-500.0,0.00041917,33]
[326696820,1715257858486,-500.0,0.00041917,33]
[326696821,1715257858496,-500.0,0.00041917,33]
[326696822,1715257858505,-3370.55,0.00041917,21]
[326696823,1715257858515,-13710.5,0.00041917,33]
[326696824,1715257858524,-513.11566708,0.00041917,33]
[326696825,1715257858533,-1098.59,0.00041917,33]
[326696826,1715257858542,-636.2210857,0.00041917,33]
[326696827,1715257858552,-1361.39,0.00041917,33]
[326696828,1715257858562,-500.0,0.00041917,33]
[326696829,1715257858571,-7344.12,0.00041917,33]
[326696830,1715257858581,-500.0,0.00041917,33]
[326696831,1715257858590,-500.0,0.00041917,33]
[326696832,1715257858599,-500.0,0.00041917,33]
[326696833,1715257858609,-500.0,0.00041917,33]
[326696834,1715257858618,-500.0,0.00041917,33]
[326696835,1715257858629,-579.06,0.00041917,33]
[326696836,1715257858638,-1699.39,0.00041917,33]
[326696837,1715257858647,-1151.12,0.00041917,33]
[326696838,1715257858657,-500.0,0.00041917,33]
[326696839,1715257858666,-500.0,0.00041917,33]
[326696840,1715257858674,-500.0,0.00041917,33]
[326696841,1715257858687,-500.0,0.00041917,33]
[326696842,1715257858711,-500.0,0.00041917,33]
[326696843,1715257858720,-528.02,0.00041917,33]
[326696844,1715257858730,-500.0,0.00041917,33]
[326696845,1715257858739,-893.08,0.00041917,33]
[326696846,1715257858749,-500.0,0.00041917,33]
[326696847,1715257858758,-500.0,0.00041917,33]
[326696848,1715257858768,-500.0,0.00041917,33]
[326696849,1715257858777,-987.24,0.00041917,33]
[326696850,1715257858787,-500.0,0.00041917,33]
[326696851,1715257858797,-500.0,0.00041917,7]
[326696852,1715257858806,-2122.67,0.00041917,33]
[326696853,1715257858816,-1395.57,0.00041917,33]
[326696854,1715257858826,-546.37370858,0.00041917,33]
[326696855,1715257858835,-302.12045827,0.00041917,33]
[326696856,1715257858845,-500.0,0.00041917,33]
[326696857,1715257858854,-1081.08,0.00041917,33]
[326696858,1715257858864,-2710.95,0.00041917,33]
[326696859,1715257858874,-500.0,0.00041917,33]
[326696860,1715257858885,-500.0,0.00041917,2]
[326696861,1715257858894,-500.0,0.00041917,33]
[326696862,1715257858904,-158.38450538,0.00041917,3]
[326696863,1715257858913,-1000.0,0.00041987,2]
[326696864,1715257858923,-1000.0,0.00041987,3]
[326696865,1715257858932,-1852.89222413,0.00042,10]
[326696866,1715257858942,-2000.0,0.00042,30]
[326696867,1715257858951,-444.88899348,0.00042,120]
[326696868,1715257858961,-259.0,0.00042,2]
[326696869,1715257858970,-259.0,0.00042,2]
[326696870,1715257858979,-500.0,0.00042191,34]
[326696871,1715257858989,-300.0,0.00042191,7]
[326696872,1715257858999,-500.0,0.00042191,34]
[326696873,1715257859009,-500.0,0.00042191,34]
[326696874,1715257859019,-535.86328758,0.00042191,34]
[326696875,1715257859028,-500.0,0.00042191,34]
[326696876,1715257859038,-500.0,0.00042191,34]
[326696877,1715257859048,-622.6,0.00042191,34]
[326696878,1715257859057,-500.0,0.00042191,34]
[326696879,1715257859070,-379.0786722,0.00042191,34]
[326696880,1715257859079,-500.0,0.00042191,34]
[326696881,1715257859088,-500.0,0.00042191,34]
[326696882,1715257859098,-511.52,0.00042191,34]
[326696883,1715257859107,-500.0,0.00042191,34]
[326696884,1715257859117,-711.13,0.00042191,34]
[326696885,1715257859127,-534.67636392,0.00042191,34]
[326696886,1715257859136,-500.0,0.00042191,34]
[326696887,1715257859145,-883.2,0.00042191,34]
[326696888,1715257859154,-500.0,0.00042191,34]
[326696889,1715257859164,-411.42845502,0.00042191,34]
[326696890,1715257859173,-297.06698699,0.00042191,34]
[326696891,1715257859183,-916.56,0.00042191,34]
[326696892,1715257859193,-500.0,0.00042191,34]
[326696893,1715257859202,-500.0,0.00042191,34]
[326696894,1715257859212,-500.0,0.00042191,34]
[326696895,1715257859221,-500.0,0.00042191,34]
[326696896,1715257859230,-307.34462269,0.00042191,34]
[326696897,1715257859239,-500.0,0.00042191,34]
[326696898,1715257859248,-1297.09,0.00042191,34]
[326696899,1715257859257,-500.0,0.00042191,34]
[326696900,1715257859266,-16666.66,0.00042191,34]
[326696901,1715257859275,-707.6,0.00042191,34]
[326696902,1715257859289,-500.0,0.00042191,34]
[326696903,1715257859299,-651.59,0.00042191,34]
[326696904,1715257859308,-2636.87,0.00042191,34]
[326696905,1715257859318,-500.0,0.00042191,34]
[326696906,1715257859327,-500.0,0.00042191,34]
[326696907,1715257859336,-500.0,0.00042191,34]
[326696908,1715257859346,-503.05893571,0.00042191,34]
[326696909,1715257859355,-3370.55,0.00042191,21]
[326696910,1715257859366,-13710.5,0.00042191,34]
[326696911,1715257859375,-1098.59,0.00042191,34]
[326696912,1715257859384,-1361.39,0.00042191,34]
[326696913,1715257859393,-500.0,0.00042191,34]
[326696914,1715257859402,-7344.12,0.00042191,34]
[326696915,1715257859411,-313.09362757,0.00042191,34]
[326696916,1715257859420,-500.0,0.00042191,34]
[326696917,1715257859429,-500.0,0.00042191,34]
[326696918,1715257859440,-512.03064039,0.00042191,34]
[326696919,1715257859449,-500.0,0.00042191,34]
[326696920,1715257859459,-579.06,0.00042191,34]
[326696921,1715257859469,-1699.39,0.00042191,34]
[326696922,1715257859478,-1151.12,0.00042191,34]
[326696923,1715257859487,-500.0,0.00042191,34]
[326696924,1715257859496,-500.0,0.00042191,34]
[326696925,1715257859505,-500.0,0.00042191,34]
[326696926,1715257859515,-500.0,0.00042191,34]
[326696927,1715257859523,-500.0,0.00042191,34]
[326696928,1715257859532,-528.02,0.00042191,34]
[326696929,1715257859542,-500.0,0.00042191,34]
[326696930,1715257859552,-893.08,0.00042191,34]
[326696931,1715257859562,-500.0,0.00042191,34]
[326696932,1715257859572,-500.0,0.00042191,34]
[326696933,1715257859581,-500.0,0.00042191,34]
[326696934,1715257859590,-987.24,0.00042191,34]
[326696935,1715257859600,-500.0,0.00042191,34]
[326696936,1715257859609,-500.0,0.00042191,7]
[326696937,1715257859618,-2122.67,0.00042191,34]
[326696938,1715257859630,-1395.57,0.00042191,34]
[326696939,1715257859639,-500.0,0.00042191,34]
[326696940,1715257859649,-1081.08,0.00042191,34]
[326696941,1715257859659,-2710.95,0.00042191,34]
[326696942,1715257859668,-501.39089955,0.00042191,34]
[326696943,1715257859678,-500.0,0.00042191,2]
[326696944,1715257859687,-500.0,0.00042191,34]
[326696945,1715257859696,-160.0,0.00042262,13]
[326696946,1715257859706,-259.10564625,0.00042262,5]
[326696947,1715257859715,-200.0,0.0004239,120]
[326696948,1715257859724,-750000.0,0.000424,2]
[326696949,1715257859734,-200.0,0.00042429,120]
[326696950,1715257859743,-211.17409099,0.00042465,7]
[326696951,1715257859752,-500.0,0.00042465,35]
[326696952,1715257859762,-297.70467163,0.00042465,7]
[326696953,1715257859771,-500.0,0.00042465,35]
[326696954,1715257859780,-500.0,0.00042465,35]
[326696955,1715257859789,-500.0,0.00042465,35]
[326696956,1715257859882,-500.0,0.00042465,35]
[326696957,1715257859893,-622.6,0.00042465,35]
[326696958,1715257859902,-500.0,0.00042465,35]
[326696959,1715257859911,-500.0,0.00042465,35]
[326696960,1715257859922,-283.180233,0.00042465,35]
[326696961,1715257859931,-511.52,0.00042465,35]
[326696962,1715257859941,-500.0,0.00042465,35]
[326696963,1715257859950,-711.13,0.00042465,35]
[326696964,1715257859959,-500.0,0.00042465,35]
[326696965,1715257859968,-883.2,0.00042465,35]
[326696966,1715257859978,-500.0,0.00042465,35]
[326696967,1715257859987,-916.56,0.00042465,35]
[326696968,1715257859996,-500.0,0.00042465,35]
[326696969,1715257860005,-500.0,0.00042465,35]
[326696970,1715257860015,-500.0,0.00042465,35]
[326696971,1715257860024,-500.0,0.00042465,35]
[326696972,1715257860034,-500.0,0.00042465,35]
[326696973,1715257860044,-1297.09,0.00042465,35]
[326696974,1715257860053,-506.02992836,0.00042465,35]
[326696975,1715257860063,-16666.66,0.00042465,35]
[326696976,1715257860072,-707.6,0.00042465,35]
[326696977,1715257860081,-500.0,0.00042465,35]
[326696978,1715257860093,-651.59,0.00042465,35]
[326696979,1715257860102,-2636.87,0.00042465,35]
[326696980,1715257860112,-500.0,0.00042465,35]
[326696981,1715257860121,-500.0,0.00042465,35]
[326696982,1715257860130,-500.0,0.00042465,35]
[326696983,1715257860139,-3370.55,0.00042465,21]
[326696984,1715257860149,-13710.5,0.00042465,35]
[326696985,1715257860157,-1098.59,0.00042465,35]
[326696986,1715257860167,-1361.39,0.00042465,35]
[326696987,1715257860176,-500.0,0.00042465,35]
[326696988,1715257860185,-7344.12,0.00042465,35]
[326696989,1715257860194,-500.0,0.00042465,35]
[326696990,1715257860203,-500.0,0.00042465,35]
[326696991,1715257860213,-500.0,0.00042465,35]
[326696992,1715257860223,-579.06,0.00042465,35]
[326696993,1715257860232,-1699.39,0.00042465,35]
[326696994,1715257860241,-1151.12,0.00042465,35]
[326696995,1715257860251,-500.0,0.00042465,35]
[326696996,1715257860260,-500.0,0.00042465,35]
[326696997,1715257860272,-500.0,0.00042465,35]
[326696998,1715257860283,-500.0,0.00042465,35]
[326696999,1715257860293,-255.04408726,0.00042465,35]
[326697000,1715257860302,-528.02,0.00042465,35]
[326697001,1715257860315,-500.0,0.00042465,35]
[326697002,1715257860325,-893.08,0.00042465,35]
[326697003,1715257860335,-500.0,0.00042465,35]
[326697004,1715257860344,-500.0,0.00042465,35]
[326697005,1715257860357,-500.0,0.00042465,35]
[326697006,1715257860370,-987.24,0.00042465,35]
[326697007,1715257860380,-500.0,0.00042465,35]
[326697008,1715257860389,-500.0,0.00042465,7]
[326697009,1715257860399,-2122.67,0.00042465,35]
[326697010,1715257860409,-1395.57,0.00042465,35]
[326697011,1715257860418,-500.0,0.00042465,35]
[326697012,1715257860428,-1081.08,0.00042465,35]
[326697013,1715257860438,-2710.95,0.00042465,35]
[326697014,1715257860448,-500.0,0.00042465,2]
[326697015,1715257860458,-500.0,0.00042465,35]
[326697016,1715257860467,-1697.9100707,0.000425,30]
[326697017,1715257860476,-500.0,0.00042739,36]
[326697018,1715257860485,-500.0,0.00042739,36]
[326697019,1715257860494,-500.0,0.00042739,36]
[326697020,1715257860503,-500.0,0.00042739,36]
[326697021,1715257860512,-500.0,0.00042739,36]
[326697022,1715257860521,-622.6,0.00042739,36]
[326697023,1715257860531,-500.0,0.00042739,36]
[326697024,1715257860540,-500.0,0.00042739,36]
[326697025,1715257860549,-511.52,0.00042739,36]
[326697026,1715257860559,-500.0,0.00042739,36]
[326697027,1715257860571,-711.13,0.00042739,36]
[326697028,1715257860580,-500.0,0.00042739,36]
[326697029,1715257860589,-883.2,0.00042739,36]
[326697030,1715257860598,-500.0,0.00042739,36]
[326697031,1715257860607,-916.56,0.00042739,36]
[326697032,1715257860617,-500.0,0.00042739,36]
[326697033,1715257860627,-500.0,0.00042739,36]
[326697034,1715257860637,-500.0,0.00042739,36]
[326697035,1715257860646,-500.0,0.00042739,36]
[326697036,1715257860656,-500.0,0.00042739,36]
[326697037,1715257860666,-1297.09,0.00042739,36]
[326697038,1715257860675,-16666.66,0.00042739,36]
[326697039,1715257860685,-707.6,0.00042739,36]
[326697040,1715257860695,-500.0,0.00042739,36]
[326697041,1715257860705,-651.59,0.00042739,36]
[326697042,1715257860715,-2636.87,0.00042739,36]
[326697043,1715257860724,-500.0,0.00042739,36]
[326697044,1715257860733,-500.0,0.00042739,36]
[326697045,1715257860743,-500.0,0.00042739,36]
[326697046,1715257860752,-3370.55,0.00042739,21]
[326697047,1715257860761,-13710.5,0.00042739,36]
[326697048,1715257860771,-1098.59,0.00042739,36]
[326697049,1715257860780,-1361.39,0.00042739,36]
[326697050,1715257860789,-150.44486842,0.00042739,36]
[326697051,1715257860799,-7344.12,0.00042739,36]
[326697052,1715257860809,-500.0,0.00042739,36]
[326697053,1715257860824,-500.0,0.00042739,36]
[326697054,1715257860833,-500.0,0.00042739,36]
[326697055,1715257860843,-579.06,0.00042739,36]
[326697056,1715257860852,-1699.39,0.00042739,36]
[326697057,1715257860861,-1151.12,0.00042739,36]
[326697058,1715257860871,-500.0,0.00042739,36]
[326697059,1715257860881,-500.0,0.00042739,36]
[326697060,1715257860890,-500.0,0.00042739,36]
[326697061,1715257860900,-500.0,0.00042739,36]
[326697062,1715257860909,-528.02,0.00042739,36]
[326697063,1715257860919,-445.28995242,0.00042739,36]
[326697064,1715257860929,-893.08,0.00042739,36]
[326697065,1715257860938,-500.0,0.00042739,36]
[326697066,1715257860948,-500.0,0.00042739,36]
[326697067,1715257860958,-500.0,0.00042739,36]
[326697068,1715257860968,-987.24,0.00042739,36]
[326697069,1715257860977,-500.0,0.00042739,36]
[326697070,1715257860986,-484.82717811,0.00042739,7]
[326697071,1715257860996,-2122.67,0.00042739,36]
[326697072,1715257861005,-1395.57,0.00042739,36]
[326697073,1715257861015,-500.0,0.00042739,36]
[326697074,1715257861024,-1081.08,0.00042739,36]
[326697075,1715257861034,-2710.95,0.00042739,36]
[326697076,1715257861043,-500.0,0.00042739,2]
[326697077,1715257861053,-500.0,0.00042739,36]
[326697078,1715257861065,-20000.0,0.00042777,120]
[326697079,1715257861074,-873.86285017,0.000428,60]
[326697080,1715257861083,-1000.0,0.00042987,2]
[326697081,1715257861092,-1000.0,0.00042987,3]
[326697082,1715257861102,-311.67217535,0.00043,2]
[326697083,1715257861112,-500.0,0.00043013,37]
[326697084,1715257861121,-500.0,0.00043013,37]
[326697085,1715257861131,-491.5430245,0.00043013,37]
[326697086,1715257861140,-500.0,0.00043013,37]
[326697087,1715257861149,-500.0,0.00043013,37]
[326697088,1715257861159,-622.6,0.00043013,37]
[326697089,1715257861168,-500.0,0.00043013,37]
[326697090,1715257861177,-500.0,0.00043013,37]
[326697091,1715257861186,-511.52,0.00043013,37]
[326697092,1715257861196,-500.0,0.00043013,37]
[326697093,1715257861205,-711.13,0.00043013,37]
[326697094,1715257861215,-500.0,0.00043013,37]
[326697095,1715257861224,-883.2,0.00043013,37]
[326697096,1715257861234,-500.0,0.00043013,37]
[326697097,1715257861243,-916.56,0.00043013,37]
[326697098,1715257861253,-500.0,0.00043013,37]
[326697099,1715257861262,-442.0125244,0.00043013,37]
[326697100,1715257861272,-500.0,0.00043013,37]
[326697101,1715257861283,-500.0,0.00043013,37]
[326697102,1715257861293,-361.78313513,0.00043013,37]
[326697103,1715257861303,-1297.09,0.00043013,37]
[326697104,1715257861314,-16666.66,0.00043013,37]
[326697105,1715257861324,-707.6,0.00043013,37]
[326697106,1715257861334,-500.0,0.00043013,37]
[326697107,1715257861345,-651.59,0.00043013,37]
[326697108,1715257861354,-2636.87,0.00043013,37]
[326697109,1715257861366,-500.0,0.00043013,37]
[326697110,1715257861375,-500.0,0.00043013,37]
[326697111,1715257861384,-220.67428586,0.00043013,37]
[326697112,1715257861393,-3370.55,0.00043013,21]
[326697113,1715257861403,-13710.5,0.00043013,37]
[326697114,1715257861412,-1098.59,0.00043013,37]
[326697115,1715257861421,-1361.39,0.00043013,37]
[326697116,1715257861430,-7344.12,0.00043013,37]
[326697117,1715257861439,-500.0,0.00043013,37]
[326697118,1715257861449,-500.0,0.00043013,37]
[326697119,1715257861459,-500.0,0.00043013,37]
[326697120,1715257861468,-579.06,0.00043013,37]
[326697121,1715257861478,-1699.39,0.00043013,37]
[326697122,1715257861487,-1151.12,0.00043013,37]
[326697123,1715257861498,-500.0,0.00043013,37]
[326697124,1715257861507,-500.0,0.00043013,37]
[326697125,1715257861517,-500.0,0.00043013,37]
[326697126,1715257861526,-500.0,0.00043013,37]
[326697127,1715257861535,-528.02,0.00043013,37]
[326697128,1715257861544,-893.08,0.00043013,37]
[326697129,1715257861553,-500.0,0.00043013,37]
[326697130,1715257861564,-500.0,0.00043013,37]
[326697131,1715257861573,-500.0,0.00043013,37]
[326697132,1715257861582,-987.24,0.00043013,37]
[326697133,1715257861591,-500.0,0.00043013,37]
[326697134,1715257861600,-2122.67,0.00043013,37]
[326697135,1715257861610,-1395.57,0.00043013,37]
[326697136,1715257861619,-500.0,0.00043013,37]
[326697137,1715257861629,-1081.08,0.00043013,37]
[326697138,1715257861638,-2710.95,0.00043013,37]
[326697139,1715257861648,-482.61858549,0.00043013,2]
[326697140,1715257861657,-327.603554,0.00043205,2]
[326697141,1715257861666,-500.0,0.00043287,38]
[326697142,1715257861675,-500.0,0.00043287,38]
[326697143,1715257861685,-500.0,0.00043287,38]
[326697144,1715257861694,-500.0,0.00043287,38]
[326697145,1715257861704,-622.6,0.00043287,38]
[326697146,1715257861713,-500.0,0.00043287,38]
[326697147,1715257861722,-500.0,0.00043287,38]
[326697148,1715257861732,-511.52,0.00043287,38]
[326697149,1715257861741,-305.92100472,0.00043287,38]
[326697150,1715257861751,-711.13,0.00043287,38]
[326697151,1715257861760,-500.0,0.00043287,38]
[326697152,1715257861770,-883.2,0.00043287,38]
[326697153,1715257861779,-500.0,0.00043287,38]
[326697154,1715257861789,-916.56,0.00043287,38]
[326697155,1715257861799,-500.0,0.00043287,38]
[326697156,1715257861808,-281.72323308,0.00043287,38]
[326697157,1715257861821,-500.0,0.00043287,38]
[326697158,1715257861831,-1297.09,0.00043287,38]
[326697159,1715257861840,-16666.66,0.00043287,38]
[326697160,1715257861850,-707.6,0.00043287,38]
[326697161,1715257861860,-500.0,0.00043287,38]
[326697162,1715257861870,-651.59,0.00043287,38]
[326697163,1715257861960,-2636.87,0.00043287,38]
[326697164,1715257861970,-500.0,0.00043287,38]
[326697165,1715257861980,-500.0,0.00043287,38]
[326697166,1715257861990,-3370.55,0.00043287,21]
[326697167,1715257862000,-13710.5,0.00043287,38]
[326697168,1715257862009,-1098.59,0.00043287,38]
[326697169,1715257862019,-1361.39,0.00043287,38]
[326697170,1715257862028,-7344.12,0.00043287,38]
[326697171,1715257862037,-500.0,0.00043287,38]
[326697172,1715257862046,-500.0,0.00043287,38]
[326697173,1715257862055,-500.0,0.00043287,38]
[326697174,1715257862067,-579.06,0.00043287,38]
[326697175,1715257862076,-1699.39,0.00043287,38]
[326697176,1715257862086,-1151.12,0.00043287,38]
[326697177,1715257862097,-500.0,0.00043287,38]
[326697178,1715257862107,-587.21253413,0.00043287,38]
[326697179,1715257862116,-500.0,0.00043287,38]
[326697180,1715257862126,-500.0,0.00043287,38]
[326697181,1715257862135,-528.02,0.00043287,38]
[326697182,1715257862145,-893.08,0.00043287,38]
[326697183,1715257862155,-500.0,0.00043287,38]
[326697184,1715257862166,-500.0,0.00043287,38]
[326697185,1715257862176,-500.0,0.00043287,38]
[326697186,1715257862186,-987.24,0.00043287,38]
[326697187,1715257862196,-500.0,0.00043287,38]
[326697188,1715257862205,-2122.67,0.00043287,38]
[326697189,1715257862216,-1395.57,0.00043287,38]
[326697190,1715257862225,-500.0,0.00043287,38]
[326697191,1715257862235,-1081.08,0.00043287,38]
[326697192,1715257862245,-2710.95,0.00043287,38]
[326697193,1715257862255,-3000.0,0.0004349,10]
[326697194,1715257862264,-500.0,0.00043561,39]
[326697195,1715257862275,-500.62957211,0.00043561,39]
[326697196,1715257862289,-500.0,0.00043561,39]
[326697197,1715257862299,-500.0,0.00043561,39]
[326697198,1715257862310,-622.6,0.00043561,39]
[326697199,1715257862321,-500.0,0.00043561,39]
[326697200,1715257862331,-500.0,0.00043561,39]
[326697201,1715257862339,-511.52,0.00043561,39]
[326697202,1715257862348,-711.13,0.00043561,39]
[326697203,1715257862358,-500.0,0.00043561,39]
[326697204,1715257862369,-883.2,0.00043561,39]
[326697205,1715257862378,-500.0,0.00043561,39]
[326697206,1715257862388,-916.56,0.00043561,39]
[326697207,1715257862399,-216.73745413,0.00043561,39]
[326697208,1715257862409,-500.0,0.00043561,39]
[326697209,1715257862418,-1297.09,0.00043561,39]